Cogmind - Beta 15 @@@ ROGUE MODE // 2025.06.30 @ 01:00:41 Player: pyroperro Result: Self-destructed Performance ------------- Evolutions (1) 500 Regions Visited (3) 600 Robots Destroyed (23) 115 Value Destroyed (562) 562 Prototype IDs (0) 0 Alien Tech Used (0) 0 Bonus (0) 0 TOTAL SCORE: 1777 Bonus ------- None Cogmind --------- Core Integrity 400/400 Matter 300/300 Energy 250/250 System Corruption 0% Temperature Cool (0) Movement Treading (160) Location -9/Materials Parts ------- > --- POWER (1) -------- Ion Engine > --- PROPULSION (3) --- Light Treads Light Treads > --- UTILITY (3) ------ Large Storage Unit Light Armor Plating > --- WEAPON (2) ------- Light Assault Rifle > --- INVENTORY (15) --- Ion Engine Light Ion Engine Compact Wheel Small Storage Unit Core Shielding Propulsion Shielding EM Pulse Gun Particle Gun Peak State ------------ > --- POWER ------------ Ion Engine > --- PROPULSION ------- Light Treads Light Treads > --- UTILITY ---------- Large Storage Unit Light Armor Plating > --- WEAPON ----------- Light Assault Rifle Light Assault Rifle > --- INVENTORY -------- Ion Engine Light Ion Engine Light Treads Compact Wheel Small Storage Unit Core Shielding Propulsion Shielding EM Pulse Gun Particle Gun [Rating: 8] Favorites ----------- Power Ion Engine Engine Ion Engine Propulsion Light Treads Treads Light Treads Utility Large Storage Unit Device Tractor Beam Storage Large Storage Unit Protection Light Armor Plating Weapon Light Assault Rifle Energy Gun EM Pulse Gun Ballistic Gun Light Assault Rifle Build | -11 -10 -10 -9 ------- Run | Yrd Mat Min Mat Slots Evolved 2 | . . . 2 Power . | . . . . Propulsion 1 | . . . 1 Utility 1 | . . . 1 Weapon . | . . . . Parts Attached 15 | 7 7 1 . Power 3 | 1 2 . . Engine 3 | 1 2 . . Core . | . . . . Reactor . | . . . . Propulsion 4 | 2 1 1 . Treads 4 | 2 1 1 . Leg . | . . . . Wheel . | . . . . Hover . | . . . . Flight . | . . . . Utility 4 | 2 2 . . Device 1 | 1 . . . Storage 2 | 1 1 . . Processor . | . . . . Hackware . | . . . . Protection 1 | . 1 . . Artifact . | . . . . Weapon 4 | 2 2 . . Energy Gun 1 | . 1 . . Energy Cannon . | . . . . Ballistic Gun 3 | 2 1 . . Ballistic Cannon . | . . . . Launcher . | . . . . Special Weapon . | . . . . Impact Weapon . | . . . . Slashing Weapon . | . . . . Piercing Weapon . | . . . . Special Melee Weapon . | . . . . Unidentified Prototypes . | . . . . Parts Lost 6 | . 4 2 . Power 1 | . 1 . . Propulsion 2 | . 1 1 . Utility 1 | . 1 . . Weapon 2 | . 1 1 . Highest Loss Streak 2 | . 2 1 . To Critical Strikes . | . . . . Average Backups 5 | 2 6 8 . Power 1 | . 1 2 . Propulsion 2 | . 2 1 . Utility 1 | . 1 3 . Weapon 1 | . 1 2 . Tool/Special . | . . . . Unused Backups 5 | . . . 5 Power 1 | . . . 1 Propulsion 1 | . . . 1 Utility 2 | . . . 2 Weapon 1 | . . . 1 Tool/Special . | . . . . Average Slot Usage (%) 89 | . 88 100 . Engine 13 | . 13 14 . Treads 27 | . 27 28 . Device 3 | . 3 . . Storage 14 | . 14 14 . Protection 1 | . . 14 . Energy Gun 5 | . 6 . . Ballistic Gun 22 | . 21 28 . Peak Build Rating 8 | 7 8 8 . Average Rating 6 | 4 6 6 . On Entrance 5 | . 7 8 6 Naked Turns . | . . . . Heaviest Build 30 | 13 30 30 . Greatest Support 40 | 40 40 40 . Greatest Overweight (x) . | . . . . Average Overweight (x) . | . . . . Largest Inventory Capacity 15 | 8 15 15 . Average Capacity 14 | 7 14 15 . Most Carried 9 | 3 9 9 . Average Carried 5 | 2 6 8 . Final Capacity 15 | 8 15 15 15 Final Carried 9 | 3 9 8 8 Class Distribution -------------------- 100% | Mutant Dominant Class ---------------- Mutant | -10/Materials Mutant | -10/Mines Mutant | -9/Materials Resources | -11 -10 -10 -9 ----------- Run | Yrd Mat Min Mat Matter Collected 457 | 274 154 29 . Remotely 220 | 178 42 . . Salvage Created 749 | 87 623 39 . Parts 40 | 3 34 3 . Haulers Intercepted . | . . . . Recyclers Shooed . | . . . . Parts Field Recycled . | . . . . Retrieved Matter . | . . . . Parts Self-Destructed . | . . . . Prevented . | . . . . Kills | -11 -10 -10 -9 ------- Run | Yrd Mat Min Mat Combat Hostiles Destroyed 18 | . 15 3 . Guns 18 | . 15 3 . Classes Destroyed 6 | 1 5 . . Worker 1 | . 1 . . Recycler 1 | 1 . . . Operator 2 | . 2 . . Watcher 1 | . 1 . . Swarmer 6 | . 3 3 . Grunt 12 | . 12 . . Best Kill Streak 5 | 1 5 3 . Combat Bots Only 5 | . 5 3 . Max Kills in Single Turn 1 | 1 1 1 . Gunslinging . | . . . . Exploded . | . . . . Melee . | . . . . Uniques/NPCs Destroyed . | . . . . Combat | -11 -10 -10 -9 -------- Run | Yrd Mat Min Mat Hostile Shots Fired 121 | . 79 42 . Missed 33 | . 22 11 . Hits 88 | . 57 31 . Projectile 88 | . 57 31 . Critical Strikes 3 | . 3 . . Damage Taken 969 | . 718 251 . Core 177 | . 104 73 . Absorbed by Shields . | . . . . Core Remaining (%) 64 | 100 . 29 . Volleys Fired 76 | 2 67 7 . Largest 2 | 2 2 2 . Hottest 60 | 40 60 40 . Shots Fired 152 | 4 134 14 . Gun 152 | 4 134 14 . Cannon . | . . . . Launcher . | . . . . Special . | . . . . Kinetic 129 | 4 111 14 . Thermal . | . . . . Explosive . | . . . . Electromagnetic 23 | . 23 . . Robot Hit Streak 10 | 4 10 6 . Robot Miss Streak 5 | . 5 1 . Penetration Max . | . . . . Secondary Targets 3 | . 1 2 . Max Gunslinging Chain 1 | . 1 1 . Shots Hit Robots 101 | 4 87 10 . Core Hits 48 | 2 43 3 . Critical Kills . | . . . . Critical Parts Destroyed 3 | . 3 . . Critical Strikes 4 | . 4 . . Destroy 3 | . 3 . . Corrupt 1 | . 1 . . Melee Attacks . | . . . . Impact . | . . . . Slashing . | . . . . Piercing . | . . . . Sneak Attacks . | . . . . Combat Hostiles . | . . . . Follow-up Attacks . | . . . . Damage Inflicted 950 | 36 829 85 . Guns 906 | 36 785 85 . Cannons . | . . . . Explosions 33 | . 33 . . Melee . | . . . . Ramming 11 | . 11 . . Kinetic 696 | 36 575 85 . Thermal 33 | . 33 . . Explosive . | . . . . Electromagnetic 210 | . 210 . . Impact . | . . . . Slashing . | . . . . Piercing . | . . . . Highest Corruption . | . . . . Average Corruption . | . . . . Corruption Purged . | . . . . Corruption Blocked . | . . . . Overload Shots . | . . . . Overflow Damage . | . . . . Projectiles . | . . . . Explosions . | . . . . Melee . | . . . . Knockbacks . | . . . . Impact . | . . . . Kinetic . | . . . . Secondary . | . . . . Self-Inflicted Damage 35 | . 35 . . Shots 1 | . 1 . . Rammed 1 | . 1 . . Targets Rammed 1 | . 1 . . Kicked . | . . . . Crushed . | . . . . Highest Temperature 109 | . 109 12 . Average Temperature 28 | . 31 6 . Received Heat Transfer 402 | . 402 . . Siege Activations . | . . . . Martial Activations . | . . . . Shielding Activations . | . . . . Robots Disrupted . | . . . . Combat Hostiles . | . . . . Robots Corrupted . | . . . . Combat Hostiles . | . . . . Parts Fried . | . . . . Impact Corruptions . | . . . . Robots Melted . | . . . . Combat Hostiles . | . . . . Parts Melted . | . . . . Heat Transferred 50 | . 50 . . Parts Sabotaged . | . . . . Parts Stolen . | . . . . Parts Stripped . | . . . . Power Chain Reactions 1 | . 1 . . Alert | -11 -10 -10 -9 ------- Run | Yrd Mat Min Mat Maximum Alert Level . | . . . . Low Security (%) 100 | 100 100 100 . Level 1 . | . . . . Level 2 . | . . . . Level 3 . | . . . . Level 4 . | . . . . Level 5 . | . . . . High Security . | . . . . Max Security . | . . . . Peak Influence 104 | 5 104 71 . Initial 21 | . . 21 11 Average 29 | . 29 47 . Influence Increases 491 | 5 416 70 . Destroy 0b10 Robot/C 360 | . 300 60 . Destroy 0b10 Robot/NC 25 | 5 20 . . Destroy Leader 82 | . 72 10 . Successful Hack 6 | . 6 . . Destroy Structure 3 | . 3 . . Lose Combat Pursuer 15 | . 15 . . Influence Decreases 480 | 5 361 94 20 Entered New Map 54 | . . 34 20 Time Decay 366 | 5 321 40 . Lost Part 60 | . 40 20 . Squads Dispatched 3 | . 3 . . Investigation 1 | . 1 . . Extermination . | . . . . Reinforcement 2 | . 2 . . Assault . | . . . . Garrison . | . . . . Intercept . | . . . . Searches Triggered . | . . . . Construction Impeded . | . . . . Haulers Reinforced . | . . . . Active Scanning Responses . | . . . . Cargo Convoy Interrupts . | . . . . Stealth | -11 -10 -10 -9 --------- Run | Yrd Mat Min Mat Distress Signals 1 | . 1 . . Communications Jammed . | . . . . Distress Signals . | . . . . Times Spotted 32 | . 26 6 . Peak Tracking Total 6 | . 6 3 . Tactical Retreats 1 | . 1 . . Traps | -11 -10 -10 -9 ------- Run | Yrd Mat Min Mat Traps Triggered . | . . . . Indirectly . | . . . . Trap Hack Attempts . | . . . . Triggered . | . . . . Disarmed . | . . . . Reprogrammed . | . . . . Reused . | . . . . Traps Extracted . | . . . . Installed . | . . . . Triggered . | . . . . Machines | -11 -10 -10 -9 ---------- Run | Yrd Mat Min Mat Machines Disabled . | . . . . Max in Single Turn . | . . . . Machines Repaired . | . . . . Machines Dismantled . | . . . . Machines Sabotaged . | . . . . Overloaded Fab Kills . | . . . . Hacking | -11 -10 -10 -9 --------- Run | Yrd Mat Min Mat Machines Accessed 3 | . 3 . . Terminals 3 | . 3 . . Fabricators . | . . . . Repair Stations . | . . . . Recycling Units . | . . . . Scanalyzers . | . . . . Garrison Access . | . . . . Total Hacks 6 | . 6 . . Successful 1 | . 1 . . Failed 5 | . 5 . . Catastrophic 3 | . 3 . . Database Lockouts . | . . . . Manual 6 | . 6 . . Terminals 6 | . 6 . . Fabricators . | . . . . Repair Stations . | . . . . Recycling Units . | . . . . Scanalyzers . | . . . . Garrison Access . | . . . . Terminal Hacks . | . . . . Fabricator Hacks . | . . . . Repair Station Hacks . | . . . . Recycling Unit Hacks . | . . . . Scanalyzer . | . . . . Garrison Access Hacks . | . . . . Unauthorized Hacks 1 | . 1 . . Terminals 1 | . 1 . . Operators 1 | . 1 . . Fabricators . | . . . . Repair Stations . | . . . . Recycling Units . | . . . . Scanalyzers . | . . . . Garrison Access . | . . . . Data Cores Recovered . | . . . . Used . | . . . . Hacking Detections 3 | . 3 . . Full Trace Events 2 | . 2 . . Feedback Events . | . . . . Feedback Blocked . | . . . . Robot Schematics Acquired . | . . . . Robots Built . | . . . . Authchips . | . . . . Time . | . . . . Total Robot Build Rating . | . . . . Part Schematics Acquired . | . . . . Parts Built . | . . . . Authchips . | . . . . Time . | . . . . Total Part Build Rating . | . . . . Parts Repaired . | . . . . Time . | . . . . Parts Recycled . | . . . . Recycled Matter . | . . . . Retrieved Matter . | . . . . Retrieved Components . | . . . . Parts Scanalyzed . | . . . . Part Schematics Acquired . | . . . . Parts Damaged . | . . . . Bothacking | -11 -10 -10 -9 ------------ Run | Yrd Mat Min Mat Used RIF Installer . | . . . . Robots Hacked . | . . . . Non-combat . | . . . . Combat . | . . . . Robot Hacks Applied . | . . . . Relay Couplers Released . | . . . . Fabnet Peak Effective % . | . . . . Robots Rewired . | . . . . Allies Hacked . | . . . . Hacks Repelled . | . . . . Allies | -11 -10 -10 -9 -------- Run | Yrd Mat Min Mat Total Allies . | . . . . Largest Group . | . . . . Highest-Rated Group . | . . . . Highest-Rated Ally . | . . . . Total Orders . | . . . . Ally Attacks . | . . . . Total Damage . | . . . . Kills . | . . . . Allies Corrupted . | . . . . Allies Melted . | . . . . Intel | -11 -10 -10 -9 ------- Run | Yrd Mat Min Mat Active Infowar (turns) . | . . . . Robot Analysis Total . | . . . . Derelict Logs Recovered . | . . . . Drone Launches . | . . . . Drone Recoveries . | . . . . Exploration | -11 -10 -10 -9 ------------- Run | Yrd Mat Min Mat Turns Passed 1354 | 66 1196 92 . Spaces Moved 681 | 40 595 46 . Core 14 | 14 . . . Treads 667 | 26 595 46 . Legs . | . . . . Wheels . | . . . . Hover . | . . . . Flight . | . . . . Fastest Speed 50 | 50 160 160 . Average Speed 157 | 121 160 160 . Slowest Speed 160 | 160 160 160 . Overloaded Moves . | . . . . Propulsion Burnouts . | . . . . Robots Hopped . | . . . . Potential Cave-ins . | . . . . Cave-ins Triggered . | . . . . Exploration Rate (%) 27 | 4 88 18 1 Regions Visited 3 Branch Regions 1 Pre-discovered Areas . | . . . . Known Exits Taken . | . . . . Unknown Exits Taken 3 | 1 1 1 . Scrap Searched . | . . . . Spaces Dug . | . . . . Terrain Destroyed 2 | . 2 . . Melee . | . . . . Projectile . | . . . . AOE 2 | . 2 . . Terrain Rammed . | . . . . Walls Destroyed . | . . . . Machines Disabled . | . . . . Actions | -11 -10 -10 -9 --------- Run | Yrd Mat Min Mat Total 828 | 51 724 53 . Wait 49 | . 49 . . Move 678 | 39 594 45 . Hop . | . . . . Pick Up 9 | 3 6 . . Fast Attach 9 | 7 2 . . Attach 3 | . 2 1 . Detach . | . . . . Swap 3 | . 3 . . Drop . | . . . . Fire 76 | 2 67 7 . Melee . | . . . . Ram . | . . . . Kick . | . . . . Crush 1 | . 1 . . Escape Stasis . | . . . . Rewire . | . . . . Trap . | . . . . Miscellaneous . | . . . . Route ------- -11/Scrapyard -10/Materials (discovered 3 exits: [*Mat] / [*Min x2]) -10/Mines -9/Materials History --------- Turn | Location | Event 13 | -11/Scrapyard | Discovered new exit (range 15) 67 | -11/Scrapyard | Entered Materials 247 | -10/Materials | Discovered new exit (range 9) 304 | -10/Materials | Build established: Mutant 787 | -10/Materials | Discovered new exit (range 15) 1208 | -10/Materials | Discovered new exit (range 16) 1263 | -10/Materials | Entered Mines 1277 | -10/Mines | Core integrity fell below 50% 1289 | -10/Mines | Met a Derelict bent on vengeance 1342 | -10/Mines | Discovered new exit (range 8) 1355 | -10/Mines | Entered Materials 1355 | -9/Materials | Evolved 2 slots: Propulsion x1, Utility x1 1355 | -9/Materials | Self-destructed Last Messages --------------- 01162_ Acquired Propulsion Shielding. 01166_ Acquired Core Shielding. 01208_ EXIT=FOUND 01245_ Acquired Lgt. Armor Plating. LOCATION=UNKNOWN GOAL=ESCAPE 01265_ Lgt. Treads destroyed. 01276_ S-10 Pest destroyed. 01276_ Switching to secondary target: S-10 Pest. 01284_ S-10 Pest destroyed. 01284_ Switching to secondary target: S-10 Pest. 01285_ Acquired 12 matter. 01286_ Acquired 15 matter. 01288_ S-10 Pest destroyed. 01289_ Acquired 2 matter. 01342_ EXIT=FOUND 01352_ Lgt. Assault Rifle destroyed. PARAMETERS=PROPULSION+1,UTILITY+1 LOCATION=UNKNOWN GOAL=ESCAPE Map ----- +----------------------------------------------------+ | ????????????????????????????????????? | | ????????????????????????????????????? | | ????????????????????????????????????? | | ????????????????????????????????????? | | ????????????????????????????????????? | | ????????????????????????????????????? | | ????????????????????????????????????? | | ????????????????????????????????????? | | ????????????????????????????????????? | | ????????????????????????????????????? | | ??????????? ??????????????????????? | | ??????????? ??????????????????????? | | ??????????? ??????????????????????? | | ??????????# #?????????????????????? | | ??????????# #?????????????????????? | | ??????????# #?????????????????????? | | ??????????+ #?????????????????????? | | ??????????# #?????????????????????? | | ??????????# #?????????????????????? | | ??????????# ###???????????????????? | | ??????????# ???????????????????? | | ???????#### ????????????????????? | | ??????##! ?????????????????????? | | ??????#! #?????????????????????? | | ??????#! #?????????????????????? | | ??????#! @ #?????????????????????? | | ??????#! #?????????????????????? | | ??????##! #####?????????????????????? | | ???????##???????????????????????????? | | ????????????????????????????????????? | | ????????????????????????????????????? | | ????????????????????????????????????? | | ????????????????????????????????????? | | ????????????????????????????????????? | | ????????????????????????????????????? | | ????????????????????????????????????? | | ????????????????????????????????????? | | ????????????????????????????????????? | | ????????????????????????????????????? | | | | | | | | | | | | | | | | | | | | | | | +----------------------------------------------------+ Best States ------------- Heat Dissipation 25 Energy Generation 10 Energy Capacity 250 Matter Stores 300 Matter Capacity 300 Sight Range 16 Terrain Scan Density 10 Armor Coverage 150 Evasion (%) 50 Recoil Reduction 2 Item Schematics ----------------- None Robot Schematics ------------------ None Fabricated ------------ Nothing Repaired ---------- Nothing Alien Tech Used ----------------- None Achievements -------------- None Challenges ------------ None Game ------ Seed SkeletonLegExtrapolator Manual? 0 Play Time 00:08:30 Cumulative 10.1 hours Start 2025.06.29 @ 23:56:35 End 2025.06.30 @ 01:00:41 Sessions 3 Manual Loads 0 Difficulty Rogue Special Mode None Game No. 12 Rogue 12 Adventurer 0 Explorer 0 Win Type - Total 0 Types 0/0/0/0/0/0/0/0/0/0 Lore% 10 Gallery% 17 Achievement% 20 Wizard Run 0 Options --------- Layout 2 ASCII 0 Keyboard 0 Movement Mouse Keybinds 0 Fullscreen 1 Font 24/Smallcaps Map View 50x44 Zoom Use 0% Tactical HUD 1 Map Filters NONE Filters NONE Steam 1 RUN: 029d761d-b38f-47f6-8fc2-fddd729489a1